fUSD/lending_fUSD_20260112
["ID","MTS","AMOUNT","RATE_DAILY","PERIOD"]
[401463735,1768241446717,-151.0,0.00017893,2]
[401463736,1768241446727,-151.0,0.00017893,2]
[401463737,1768241446736,-151.0,0.00017893,2]
[401463738,1768241446745,-151.0,0.00017893,2]
[401463739,1768241446755,-151.0,0.00017893,2]
[401463740,1768241446764,-151.0,0.00017893,2]
[401463741,1768241446773,-419.679837,0.00017893,2]
[401463742,1768241446783,-419.679837,0.00017893,2]
[401463743,1768241446792,-151.0,0.00017893,2]
[401463744,1768241446802,-419.679837,0.00017893,2]
[401463745,1768241446811,-151.0,0.00017893,2]
[401463746,1768241446821,-151.0,0.00017893,2]
[401463747,1768241446830,-419.679837,0.00017893,2]
[401463748,1768241446839,-151.0,0.00017893,2]
[401463749,1768241446849,-151.0,0.00017893,2]
[401463750,1768241446858,-151.0,0.00017893,2]
[401463751,1768241446867,-290.778857,0.00017893,2]
[401463752,1768241446877,-151.0,0.00017893,2]
[401463753,1768241446887,-290.778857,0.00017893,2]
[401463754,1768241446897,-290.778857,0.00017893,2]
[401463755,1768241446906,-290.778857,0.00017893,2]
[401463756,1768241446915,-271.712617,0.00017893,2]
[401463757,1768241446925,-271.712617,0.00017893,2]
[401463758,1768241446935,-271.712617,0.00017893,2]
[401463759,1768241446944,-271.712617,0.00017893,2]
[401463760,1768241446954,-519.406332,0.00017893,2]
[401463761,1768241446964,-519.406332,0.00017893,2]
[401463762,1768241446974,-519.406332,0.00017893,2]
[401463763,1768241446985,-519.406332,0.00017893,2]
[401463764,1768241446996,-195.307106,0.00017893,2]
[401463765,1768241447006,-195.307106,0.00017893,2]
[401463766,1768241447016,-195.307106,0.00017893,2]
[401463767,1768241447025,-195.307106,0.00017893,2]
[401463768,1768241447035,-151.0,0.00017893,2]
[401463769,1768241447044,-151.0,0.00017893,2]
[401463770,1768241447053,-151.0,0.00017893,2]
[401463771,1768241447063,-151.0,0.00017893,2]
[401463772,1768241447075,-151.0,0.00017893,2]
[401463773,1768241447087,-151.0,0.00017893,2]
[401463774,1768241447097,-151.0,0.00017893,2]
[401463775,1768241447106,-151.0,0.00017893,2]
[401463776,1768241447116,-151.0,0.00017893,2]
[401463777,1768241447127,-151.0,0.00017893,2]
[401463778,1768241447136,-151.0,0.00017893,2]
[401463779,1768241447145,-1455.235658,0.00017893,2]
[401463780,1768241447155,-1455.235658,0.00017893,2]
[401463781,1768241447165,-151.0,0.00017893,2]
[401463782,1768241447175,-1455.235658,0.00017893,2]
[401463783,1768241447185,-151.0,0.00017893,2]
[401463784,1768241447194,-151.0,0.00017893,2]
[401463785,1768241447203,-1455.235658,0.00017893,2]
[401463786,1768241447213,-151.0,0.00017893,2]
[401463787,1768241447225,-151.0,0.00017893,2]
[401463788,1768241447234,-151.0,0.00017893,2]
[401463789,1768241447244,-151.0,0.00017893,2]
[401463790,1768241447253,-151.0,0.00017893,2]
[401463791,1768241447264,-151.0,0.00017893,2]
[401463792,1768241447284,-221.69121824,0.00017893,2]
[401463793,1768241447301,-997.021516,0.00017893,2]
[401463794,1768241447315,-997.021516,0.00017893,2]
[401463795,1768241447333,-997.021516,0.00017893,2]
[401463796,1768241447343,-997.021516,0.00017893,2]
[401463797,1768241447356,-260.1011,0.00017893,2]
[401463798,1768241447365,-260.1011,0.00017893,2]
[401463799,1768241447375,-260.1011,0.00017893,2]
[401463800,1768241447384,-260.1011,0.00017893,2]
[401463801,1768241447394,-151.0,0.00017893,2]
[401463802,1768241447403,-151.0,0.00017893,2]
[401463803,1768241447413,-382.369649,0.00017893,2]
[401463804,1768241447423,-382.369649,0.00017893,2]
[401463805,1768241447433,-382.369649,0.00017893,2]
[401463806,1768241447442,-382.369649,0.00017893,2]
[401463807,1768241447452,-360.138568,0.00017893,2]
[401463808,1768241447464,-15518.7787318,0.00017893,2]
[401463809,1768241447474,-360.138568,0.00017893,2]
[401463810,1768241447483,-360.138568,0.00017893,2]
[401463811,1768241447493,-360.138568,0.00017893,2]
[401463812,1768241447511,-207.681717,0.00017893,2]
[401463813,1768241447520,-207.681717,0.00017893,2]
[401463814,1768241447534,-207.681717,0.00017893,2]
[401463815,1768241447544,-207.681717,0.00017893,2]
[401463816,1768241447554,-151.0,0.00017893,2]
[401463817,1768241447563,-241.931617,0.00017893,2]
[401463818,1768241447573,-1521.2349884,0.00017893,2]
[401463819,1768241447584,-151.0,0.00017893,2]
[401463820,1768241447602,-241.931617,0.00017893,2]
[401463821,1768241447612,-151.0,0.00017893,2]
[401463822,1768241447621,-241.931617,0.00017893,2]
[401463823,1768241447630,-241.931617,0.00017893,2]
[401463824,1768241447640,-151.0,0.00017893,2]
[401463825,1768241447650,-151.0,0.00017893,2]
[401463826,1768241447659,-151.0,0.00017893,2]
[401463827,1768241447668,-242.656156,0.00017893,2]
[401463828,1768241447678,-151.0,0.00017893,2]
[401463829,1768241447688,-151.0,0.00017893,2]
[401463830,1768241447698,-151.0,0.00017893,2]
[401463831,1768241447707,-151.0,0.00017893,2]
[401463832,1768241447716,-253.170189,0.00017893,2]
[401463833,1768241447726,-253.170189,0.00017893,2]
[401463834,1768241447735,-253.170189,0.00017893,2]
[401463835,1768241447745,-253.170189,0.00017893,2]
[401463836,1768241447754,-151.0,0.00017893,2]
[401463837,1768241447763,-151.0,0.00017893,2]
[401463838,1768241447773,-151.0,0.00017893,2]
[401463839,1768241447783,-151.0,0.00017893,2]
[401463840,1768241447792,-151.0,0.00017893,2]
[401463841,1768241447801,-214.643691,0.00017893,2]
[401463842,1768241447811,-151.0,0.00017893,2]
[401463843,1768241447820,-214.643691,0.00017893,2]
[401463844,1768241447830,-151.0,0.00017893,2]
[401463845,1768241447839,-214.643691,0.00017893,2]
[401463846,1768241447849,-214.643691,0.00017893,2]
[401463847,1768241447858,-524.624969,0.00017893,2]
[401463848,1768241447867,-524.624969,0.00017893,2]
[401463849,1768241447876,-524.624969,0.00017893,2]
[401463850,1768241447886,-524.624969,0.00017893,2]
[401463851,1768241447896,-151.0,0.00017893,2]
[401463852,1768241447906,-275.212537,0.00017893,2]
[401463853,1768241447916,-171.582681,0.00017893,2]
[401463854,1768241447925,-151.0,0.00017893,2]
[401463855,1768241447935,-151.0,0.00017893,2]
[401463856,1768241447944,-151.0,0.00017893,2]
[401463857,1768241447953,-151.0,0.00017893,2]
[401463858,1768241447963,-151.0,0.00017893,2]
[401463859,1768241447972,-151.0,0.00017893,2]
[401463860,1768241447981,-151.0,0.00017893,2]
[401463861,1768241447991,-151.0,0.00017893,2]
[401463862,1768241447999,-181.854213,0.00017893,2]
[401463863,1768241448009,-243.027434,0.00017893,2]
[401463864,1768241448018,-181.854213,0.00017893,2]
[401463865,1768241448027,-243.027434,0.00017893,2]
[401463866,1768241448037,-181.854213,0.00017893,2]
[401463867,1768241448047,-243.027434,0.00017893,2]
[401463868,1768241448056,-181.854213,0.00017893,2]
[401463869,1768241448066,-360.730126,0.00017893,2]
[401463870,1768241448075,-243.027434,0.00017893,2]
[401463871,1768241448084,-338.30673804,0.00017893,2]
[401463872,1768241448100,-22.42338796,0.00017893,2]
[401463873,1768241448109,-360.730126,0.00017893,2]
[401463874,1768241448119,-241.02648603,0.00017893,2]
[401463875,1768241448143,-119.70363997,0.00017893,2]
[401463876,1768241448152,-155.253323,0.00017893,2]
[401463877,1768241448162,-68.58219189,0.00017893,2]
[401463878,1768241448173,-86.67113111,0.00017893,2]
[401463879,1768241448182,-155.253323,0.00017893,2]
[401463880,1768241448470,-151.0,0.00017893,2]
[401463881,1768241448480,-107.07554589,0.00017893,2]
[401463882,1768241889820,673.06,0.00011698,2]
[401463883,1768241899986,-182.5391889,0.00011893,2]
[401463884,1768241902664,-490.5208111,0.00011893,2]
[401463885,1768241902687,-9.4791889,0.00012087,2]
[401463886,1768241905359,-186.40952326,0.00012087,2]
[401463887,1768241909111,-432.38288912,0.00012087,2]
[401463888,1768242005565,-172.36715775,0.00012087,2]
[401463893,1768242500515,-76.63284225,0.00012087,2]
[401463894,1768242500540,-138.13791765,0.00012087,2]
[401463895,1768242504120,-145.08475826,0.00012087,2]
[401463896,1768242504150,-41.46661104,0.00012087,2]
[401463898,1768242557122,-3.32178768,0.00012087,2]
[401463899,1768242557144,-673.06,0.00012282,2]
[401463900,1768242557164,-673.06,0.00012476,2]
[401463901,1768242557184,-307.19022132,0.000125,2]
[401463902,1768242557205,-673.06,0.00012671,2]
[401463903,1768242557225,-673.06,0.00012865,2]
[401463904,1768242557246,-242.23,0.00013,2]
[401463905,1768242557266,-673.06,0.0001306,2]
[401463906,1768242557289,-673.06,0.00013254,2]
[401463907,1768242557309,-300.0,0.00013295,2]
[401463908,1768242557329,-212.06175971,0.00013296,2]
[401463909,1768242557349,-300.0,0.00013296,2]
[401463910,1768242557368,-250.0,0.00013296,2]
[401463911,1768242557388,-300.0,0.00013296,2]
[401463912,1768242557408,-250.0,0.00013296,2]
[401463913,1768242557428,-300.0,0.00013296,2]
[401463914,1768242557448,-193.0,0.00013296,2]
[401463915,1768242557468,-1166.2,0.00013348,2]
[401463916,1768242557489,-1200.0,0.00013416,2]
[401463917,1768242557509,-1227.63623129,0.00013417,2]
[401463919,1768242573106,-642.77376871,0.00013417,2]
[401463920,1768242573128,-300.0,0.00013447,2]
[401463921,1768242573150,-673.06,0.00013448,2]
[401463922,1768242573172,-787.25604664,0.000135,2]
[401463964,1768242633247,-673.06,0.00013643,2]
[401463965,1768242633259,-262.0,0.00013643,2]
[401463966,1768242633268,-298.37,0.00013699,2]
[401463967,1768242633278,-242.23,0.00013722,2]
[401463968,1768242633287,-195.0,0.00013726,2]
[401463969,1768242633297,-150.0,0.00013728,2]
[401463970,1768242633306,-673.06,0.00013837,2]
[401463971,1768242633315,-166.67,0.00013928,2]
[401463972,1768242633325,-1200.0,0.00013988,2]
[401463973,1768242633335,-150.0,0.00013988,2]
[401463974,1768242633345,-300.0,0.00013988,2]
[401463975,1768242633354,-500.0,0.00013989,2]
[401463976,1768242633364,-500.0,0.00013989,2]
[401463977,1768242633373,-200.0,0.00013989,2]
[401463978,1768242633382,-500.0,0.00013989,2]
[401463979,1768242633392,-500.0,0.00013989,2]
[401463980,1768242633401,-500.0,0.00013989,2]
[401463981,1768242633411,-500.0,0.00013989,2]
[401463982,1768242633420,-500.0,0.00013989,2]
[401463983,1768242633431,-500.0,0.00013989,2]
[401463984,1768242633441,-500.0,0.00013989,2]
[401463985,1768242633451,-500.0,0.00013989,2]
[401463986,1768242633460,-500.0,0.00013989,2]
[401463987,1768242633471,-200.0,0.00013989,2]
[401463988,1768242633480,-500.0,0.00013989,2]
[401463989,1768242633490,-500.0,0.00013989,2]
[401463990,1768242633501,-500.0,0.00013989,2]
[401463991,1768242633510,-500.0,0.00013989,2]
[401463992,1768242633520,-500.0,0.00013989,2]
[401463993,1768242633531,-607.55267771,0.00013989,2]
[401463994,1768242633541,-500.0,0.00013989,2]
[401463995,1768242633550,-500.0,0.00013989,2]
[401463996,1768242633560,-500.0,0.00013989,2]
[401463997,1768242633570,-500.0,0.00013989,2]
[401463998,1768242633579,-500.0,0.00013989,2]
[401463999,1768242633588,-500.0,0.00013989,2]
[401464000,1768242633598,-500.0,0.00013989,2]
[401464001,1768242633607,-500.0,0.00013989,2]
[401464002,1768242633616,-500.0,0.00013989,2]
[401464003,1768242633627,-500.0,0.00013989,2]
[401464004,1768242633640,-500.0,0.00013989,2]
[401464005,1768242633650,-500.0,0.00013989,2]
[401464006,1768242633660,-500.0,0.00013989,2]
[401464007,1768242633671,-500.0,0.00013989,2]
[401464008,1768242633680,-500.0,0.00013989,2]
[401464009,1768242633690,-499.99999999,0.00013989,2]
[401464010,1768242633699,-5387.16611027,0.00013991,2]
[401464011,1768242633710,-5000.0,0.00013991,2]
[401464012,1768242633720,-5000.0,0.00013991,2]
[401464013,1768242633730,-673.06,0.00014032,2]
[401464014,1768242633740,-200.0,0.00014128,2]
[401464015,1768242633750,-673.06,0.00014226,2]
[401464016,1768242633760,-298.37,0.00014384,2]
[401464017,1768242633770,-3725.38333766,0.0001439,2]
[401464018,1768242633780,-673.06,0.00014421,2]
[401464019,1768242633790,-242.23,0.00014444,2]
[401464020,1768242633799,-1000.0,0.0001454,2]
[401464021,1768242633809,-2500.0,0.0001454,2]
[401464022,1768242633818,-3678.43905385,0.00014594,2]
[401464023,1768242633828,-673.06,0.00014615,2]
[401464024,1768242633838,-151.0,0.00014637,2]
[401464025,1768242633847,-580.94,0.00014639,2]
[401464026,1768242633857,-166.67,0.00014694,2]
[401464027,1768242633866,-673.06,0.00014809,2]
[401464028,1768242633875,-580.94,0.00014913,2]
[401464029,1768242633884,-2991.28685856,0.00014961,2]
[401464030,1768242633897,-687.15219529,0.00014961,2]
[401464031,1768242633906,-4466.81062655,0.00015,2]
[401464032,1768242633915,-673.06,0.00015004,2]
[401464033,1768242633925,-195.0,0.00015007,2]
[401464034,1768242633935,-631.90762313,0.00015007,2]
[401464035,1768242633945,-2500.0,0.00015007,2]
[401464036,1768242633954,-1936.99946493,0.00015007,2]
[401464037,1768242633964,-298.37,0.00015068,2]
[401464038,1768242633975,-155.0,0.00015107,2]
[401464039,1768242633984,-242.23,0.00015166,2]
[401464040,1768242633993,-580.94,0.00015187,2]
[401464041,1768242634003,-673.06,0.00015198,2]
[401464042,1768242634012,-16783.81797832,0.0001532,2]
[401464043,1768242634125,-434.1571506,0.0001532,2]
[401464044,1768242634152,-420.51999999,0.0001532,2]
[401464045,1768242634164,-5139.61447808,0.0001532,2]
[401464046,1768242634175,-1604.723018,0.0001532,2]
[401464047,1768242638147,-1550.56786155,0.0001532,2]
[401464048,1768242638160,-1973.02174415,0.0001532,2]
[401464049,1768242638169,-347.15855081,0.00015329,2]
[401464050,1768242638181,-600.0,0.00015329,2]
[401464051,1768242638192,-555.68821727,0.00015329,2]
[401464052,1768242638204,-1017.64549955,0.00015329,2]
[401464053,1768242638216,-999.8506,0.00015329,2]
[401464054,1768242638228,-158.09618622,0.00015329,2]
[401464055,1768242638239,-842.41574378,0.00015387,2]
[401464056,1768242638251,-506.24704117,0.00015387,2]
[401464057,1768242638264,-331.33721505,0.00015387,2]
[401464058,1768242638273,-673.06,0.00015393,2]
[401464059,1768242638283,-151.0,0.00015415,2]
[401464060,1768242638293,-151.0,0.00015415,2]
[401464061,1768242638302,-151.0,0.00015417,2]
[401464062,1768242638312,-126.01721598,0.00015417,2]
[401464063,1768242638324,-24.98278402,0.00015417,2]
[401464064,1768242638333,-151.0,0.00015441,2]
[401464065,1768242638343,-151.0,0.00015441,2]
[401464066,1768242638353,-151.0,0.00015444,2]
[401464067,1768242638363,-151.0,0.00015444,2]
[401464068,1768242638372,-166.67,0.0001546,2]
[401464069,1768242638382,-580.94,0.00015461,2]
[401464070,1768242638392,-500.0,0.00015486,2]
[401464071,1768242638401,-286.06,0.00015508,2]
[401464072,1768242638411,-1000.0,0.00015516,2]
[401464073,1768242638421,-500.0,0.00015562,2]
[401464074,1768242638432,-152.06497503,0.00015663,2]
[401464075,1768242638443,-1000.0,0.00015665,2]
[401464076,1768242638453,-3678.43905385,0.00015696,2]
[401464077,1768242638463,-1000.0,0.00015721,2]
[401464078,1768242638473,-580.94,0.00015735,2]
[401464079,1768242638483,-298.37,0.00015753,2]
[401464082,1768242638504,-500.0,0.00015873,2]
[401464084,1768242638515,-242.23,0.00015888,2]
[401464085,1768242638528,-10832.34909668,0.00015908,2]
[401464087,1768242638543,-186.61575358,0.00015908,2]
[401464089,1768242638553,-1000.0,0.00015918,2]
[401464091,1768242638562,-500.0,0.00015973,2]
[401464093,1768242638571,-151.0,0.00015997,2]
[401464095,1768242638581,-9432.60016094,0.00016,2]
[401464097,1768242638591,-2299.99999506,0.00016,2]
[401464099,1768242638600,-459923.78491251,0.00016,4]
[401464101,1768242638609,-7109.75,0.00016008,2]
[401464103,1768242638619,-580.97043586,0.00016009,2]
[401464106,1768242638629,-3678.43905385,0.00016063,2]
[401464108,1768242638644,-1000.0,0.00016112,2]
[401464110,1768242638655,-10832.34909668,0.00016129,2]
[401464112,1768242638665,-3240.0,0.00016135,2]
[401464114,1768242638674,-186.61575351,0.00016193,2]
[401464116,1768242638684,-150.0,0.000162,2]
[401464118,1768242638695,-150.0,0.000162,2]
[401464119,1768242639060,-150.0,0.000162,2]
[401464120,1768242639070,-150.0,0.000162,2]
[401464121,1768242639084,-150.0,0.000162,2]
[401464122,1768242639094,-150.0,0.000162,2]
[401464123,1768242639104,-150.0,0.000162,2]
[401464124,1768242639114,-150.0,0.000162,2]
[401464125,1768242639123,-150.0,0.000162,2]
[401464126,1768242639132,-150.0,0.000162,2]
[401464127,1768242639142,-150.0,0.000162,2]
[401464128,1768242639151,-150.0,0.000162,2]
[401464129,1768242639161,-150.0,0.000162,2]
[401464130,1768242639172,-150.0,0.000162,2]
[401464131,1768242639182,-5000.00233206,0.000162,5]
[401464132,1768242639191,-166.67,0.00016226,2]
[401464133,1768242639201,-150.0,0.00016234,2]
[401464134,1768242639211,-150.0,0.00016239,2]
[401464135,1768242639220,-150.0,0.00016243,2]
[401464136,1768242639229,-150.0,0.00016245,2]
[401464137,1768242639238,-150.0,0.00016255,2]
[401464138,1768242639247,-150.0,0.0001626,2]
[401464139,1768242639257,-150.0,0.00016268,2]
[401464140,1768242639266,-150.0,0.00016269,2]
[401464141,1768242639275,-150.0,0.00016278,2]
[401464142,1768242639285,-150.0,0.00016286,2]
[401464143,1768242639295,-150.0,0.0001629,2]
[401464144,1768242639304,-150.0,0.00016302,2]
[401464145,1768242639314,-150.0,0.00016309,2]
[401464146,1768242639324,-150.0,0.00016317,2]
[401464147,1768242639334,-150.0,0.0001632,2]
[401464148,1768242639343,-150.0,0.00016329,2]
[401464149,1768242639352,-150.0,0.00016335,2]
[401464150,1768242639362,-150.0,0.00016336,2]
[401464151,1768242639371,-150.0,0.00016338,2]
[401464152,1768242639381,-10832.34909668,0.00016351,2]
[401464153,1768242639391,-150.0,0.00016357,2]
[401464154,1768242639400,-150.0,0.00016364,2]
[401464155,1768242639410,-150.0,0.0001637,2]
[401464156,1768242639419,-150.0,0.00016371,2]
[401464157,1768242639429,-150.0,0.0001638,2]
[401464158,1768242639438,-150.0,0.0001638,2]
[401464159,1768242639448,-150.0,0.0001638,2]
[401464160,1768242639461,-150.0,0.0001638,2]
[401464161,1768242639471,-150.0,0.00016396,2]
[401464162,1768242639480,-150.0,0.000164,2]
[401464163,1768242639490,-150.0,0.00016404,2]
[401464164,1768242639500,-150.0,0.00016408,2]
[401464165,1768242639509,-150.0,0.00016414,2]
[401464166,1768242639519,-150.0,0.00016414,2]
[401464167,1768242639529,-150.0,0.00016418,2]
[401464168,1768242639538,-150.0,0.00016425,2]
[401464169,1768242639548,-3678.43905385,0.00016431,2]
[401464170,1768242639560,-150.0,0.00016435,2]
[401464171,1768242639569,-150.0,0.00016438,2]
[401464172,1768242639579,-527.47,0.00016438,2]
[401464173,1768242639589,-527.47,0.00016438,2]
[401464174,1768242639598,-527.47,0.00016438,2]
[401464175,1768242639607,-527.47,0.00016438,2]
[401464176,1768242639617,-600.0,0.00016438,2]
[401464177,1768242639626,-298.37,0.00016438,2]
[401464178,1768242639638,-567.0,0.00016438,2]
[401464179,1768242639647,-18303.76,0.00016438,2]
[401464180,1768242639657,-151.0,0.00016438,2]
[401464181,1768242639667,-150.0,0.0001644,2]
[401464182,1768242639677,-150.0,0.00016457,2]
[401464183,1768242639686,-150.0,0.0001647,2]
[401464184,1768242639696,-1000.0,0.00016471,2]
[401464185,1768242639705,-150.0,0.00016472,2]
[401464186,1768242639714,-150.0,0.00016473,2]
[401464187,1768242639724,-150.0,0.00016474,2]
[401464188,1768242639733,-150.0,0.00016477,2]
[401464189,1768242639742,-150.0,0.000165,2]
[401464190,1768242639753,-150.0,0.000165,2]
[401464191,1768242639763,-150.0,0.000165,2]
[401464192,1768242639772,-150.0,0.00016506,2]
[401464193,1768242639781,-150.0,0.00016513,2]
[401464194,1768242639791,-1000.0,0.00016515,2]
[401464195,1768242639800,-150.0,0.00016515,2]
[401464196,1768242639810,-150.0,0.00016527,2]
[401464197,1768242639821,-150.0,0.0001654,2]
[401464199,1768242639838,-150.0,0.00016543,2]
[401464200,1768242639847,-150.0,0.00016546,2]
[401464201,1768242639859,-150.0,0.00016552,2]
[401464202,1768242639870,-150.0,0.0001656,2]
[401464203,1768242639879,-150.0,0.0001656,2]
[401464204,1768242639889,-150.0,0.0001656,2]
[401464205,1768242639898,-150.0,0.0001656,2]
[401464206,1768242639908,-10832.34909668,0.00016572,2]
[401464207,1768242639916,-150.0,0.00016574,2]
[401464208,1768242639926,-150.0,0.00016582,2]
[401464209,1768242639935,-183.94,0.00016584,2]
[401464210,1768242639944,-150.0,0.00016586,2]
[401464211,1768242639954,-150.0,0.00016591,2]
[401464212,1768242639964,-150.0,0.000166,2]
[401464213,1768242639974,-500.0,0.00016603,2]
[401464214,1768242639983,-150.0,0.00016605,2]
[401464215,1768242639993,-150.0,0.00016608,2]
[401464216,1768242640002,-242.23,0.0001661,2]
[401464217,1768242640011,-150.0,0.00016615,2]
[401464218,1768242640021,-150.0,0.0001662,2]
[401464219,1768242640031,-150.0,0.00016629,2]
[401464222,1768242640040,-150.0,0.0001663,2]
[401464224,1768242640050,-150.0,0.00016636,2]
[401464228,1768242640059,-150.0,0.00016642,2]
[401464229,1768242640069,-150.0,0.0001665,2]
[401464230,1768242640079,-150.0,0.0001667,2]
[401464231,1768242640088,-150.0,0.00016671,2]
[401464233,1768242640098,-275.91,0.00016675,2]
[401464235,1768242640107,-202.96,0.00016675,2]
[401464237,1768242640117,-150.0,0.00016675,2]
[401464239,1768242640126,-150.0,0.0001668,2]
[401464241,1768242640136,-150.0,0.00016685,2]
[401464242,1768242640146,-150.0,0.00016691,2]
[401464243,1768242640155,-150.0,0.00016695,2]
[401464244,1768242640165,-150.0,0.00016709,2]
[401464245,1768242640174,-150.0,0.00016709,2]
[401464246,1768242640184,-150.0,0.00016714,2]
[401464247,1768242640193,-483.1,0.00016717,2]
[401464248,1768242640211,-483.1,0.00016717,2]
[401464249,1768242640221,-834.0,0.0001672,2]
[401464250,1768242640231,-150.0,0.0001674,2]
[401464251,1768242640240,-150.0,0.0001674,2]
[401464252,1768242640252,-150.0,0.0001674,2]
[401464253,1768242640262,-150.0,0.0001674,2]
[401464254,1768242640272,-150.0,0.00016743,2]
[401464255,1768242640282,-150.0,0.00016745,2]
[401464256,1768242640291,-154.04,0.00016747,2]
[401464257,1768242640301,-150.0,0.00016748,2]
[401464258,1768242640311,-150.0,0.00016754,2]
[401464259,1768242640320,-150.0,0.00016757,2]
[401464260,1768242640330,-27280.93001307,0.00016777,2]
[401464261,1768242640340,-150.0,0.00016777,2]
[401464262,1768242640350,-150.0,0.00016785,2]
[401464263,1768242640359,-150.0,0.00016787,2]
[401464264,1768242640369,-10832.34909668,0.00016793,2]
[401464265,1768242640379,-3678.43905385,0.00016798,2]
[401464266,1768242640388,-150.0,0.000168,2]
[401464267,1768242640398,-150.0,0.000168,2]
[401464268,1768242640407,-150.0,0.000168,2]
[401464269,1768242640417,-150.0,0.000168,2]
[401464270,1768242640427,-150.0,0.000168,2]
[401464271,1768242640437,-150.0,0.000168,2]
[401464272,1768242640446,-150.0,0.00016811,2]
[401464273,1768242640456,-150.0,0.00016823,2]
[401464274,1768242640466,-150.0,0.00016826,2]
[401464275,1768242640475,-150.0,0.0001683,2]
[401464276,1768242640484,-150.0,0.00016843,2]
[401464277,1768242640493,-150.0,0.00016845,2]
[401464278,1768242640503,-183.94,0.0001685,2]
[401464279,1768242640513,-1000.0,0.00016851,2]
[401464280,1768242640522,-15518.7787318,0.00016853,2]
[401464281,1768242640532,-150.0,0.00016855,2]
[401464282,1768242640541,-150.0,0.0001686,2]
[401464283,1768242640551,-1000.0,0.00016863,2]
[401464284,1768242640561,-150.0,0.00016865,2]
[401464285,1768242640571,-150.0,0.00016875,2]
[401464286,1768242640581,-150.0,0.00016879,2]
[401464287,1768242640590,-150.0,0.00016886,2]
[401464288,1768242640600,-150.0,0.00016892,2]
[401464290,1768242640610,-1000.0,0.00016897,2]
[401464291,1768242640629,-776.50436,0.000169,2]
[401464292,1768242640643,-150.0,0.00016904,2]
[401464293,1768242640653,-150.0,0.00016909,2]
[401464294,1768242640663,-150.0,0.00016913,2]
[401464295,1768242640674,-150.0,0.0001692,2]
[401464296,1768242640685,-150.0,0.0001692,2]
[401464297,1768242640695,-150.0,0.0001692,2]
[401464298,1768242640705,-150.0,0.0001692,2]
[401464299,1768242640715,-2351.0,0.00016926,2]
[401464300,1768242640725,-150.0,0.00016929,2]
[401464301,1768242640734,-483.1,0.00016941,2]
[401464302,1768242640744,-150.0,0.00016943,2]
[401464303,1768242640756,-150.0,0.00016947,2]
[401464304,1768242640766,-150.0,0.00016962,2]
[401464305,1768242640775,-150.0,0.00016964,2]
[401464306,1768242640785,-150.0,0.00016965,2]
[401464307,1768242640795,-150.0,0.00016971,2]
[401464308,1768242640806,-150.0,0.0001698,2]
[401464309,1768242640816,-150.0,0.00016981,2]
[401464310,1768242640826,-150.0,0.00016983,2]
[401464311,1768242640836,-151.0,0.00016983,2]
[401464312,1768242640846,-527.47,0.00016986,2]
[401464313,1768242640856,-101686.29,0.00016986,2]
[401464314,1768242640865,-600.0,0.00016986,2]